bitfinex/quotes_ETHUSD_20220226
["timestamp","ask_amount","ask_price","bid_price","bid_amount"]
[1645837219969,1.4326653,2833.0,2831.9,3.55357853]
[1645837219970,1.2744655,2832.9,2831.9,3.55357853]
[1645837220164,0.31460145,2832.9,2831.9,3.55357853]
[1645837220363,0.0506172,2832.4,2831.9,3.55357853]
[1645837220563,0.0506172,2832.4,2832.3,0.00504383]
[1645837221427,0.1411,2833.0,2831.9,0.05357853]
[1645837221625,0.5753,2833.1,2832.0,0.4811733]
[1645837221828,0.4342,2833.1,2832.2,0.00542248]
[1645837222031,0.0506172,2832.5,2832.3,0.4811733]
[1645837222227,0.4342,2833.1,2832.4,0.47669867]
[1645837222425,0.4342,2833.1,2832.2,0.30542248]
[1645837222631,0.4342,2833.1,2832.3,0.47668366]
[1645837222826,0.4342,2833.1,2832.2,0.3]
[1645837222827,1.33343501,2832.8,2832.2,0.3]
[1645837223025,1.33343501,2832.8,2832.6,0.00542192]
[1645837223428,0.4342,2833.1,2832.6,0.00542192]
[1645837223429,0.0506172,2832.7,2832.6,0.00542192]
[1645837223627,0.4342,2833.1,2832.6,0.00542192]
[1645837223828,0.4342,2833.1,2832.4,1.3]
[1645837224028,0.4342,2833.1,2832.4,1.0]
[1645837224229,0.4342,2833.1,2832.5,0.00542199]
[1645837224666,1.34417492,2833.0,2832.5,0.00542199]
[1645837224866,1.48527492,2833.0,2832.5,0.00542199]
[1645837225067,1.48527492,2833.0,2831.9,0.10715705]
[1645837225068,0.0506172,2832.8,2831.9,0.10715705]
[1645837225273,6.1241079,2832.7,2831.9,0.10715705]
[1645837225568,1.19884754,2832.5,2831.9,0.10715705]
[1645837225769,0.1411,2832.4,2831.9,0.10715705]
[1645837226171,10.5,2832.2,2831.8,0.05357852]
[1645837226380,10.5,2832.2,2831.6,0.05357853]
[1645837226381,7.5,2831.9,2831.6,0.05357853]
[1645837226573,0.1411,2831.8,2831.4,0.30371892]
[1645837226971,3.75646634,2832.0,2831.4,0.30371892]
[1645837226972,0.1411,2831.9,2831.4,0.30371892]
[1645837227171,0.31772695,2831.9,2831.4,0.30371892]
[1645837227776,0.31772695,2831.9,2831.5,0.00542397]
[1645837228172,0.31772695,2831.9,2831.0,0.205438]
[1645837228173,7.0,2831.4,2830.8,0.25901652]
[1645837228419,1.37263681,2831.4,2830.8,0.25901652]
[1645837228623,1.37263681,2831.4,2830.9,0.15185946]
[1645837228624,1.12223237,2831.3,2830.9,0.15185946]
[1645837228819,0.4411,2831.3,2830.9,0.15185946]
[1645837229016,0.61367855,2831.3,2830.9,0.15185946]
[1645837229517,0.0506172,2831.1,2830.9,0.15185946]
[1645837229717,0.10698348,2830.8,2830.3,0.15185946]
[1645837229920,0.10698348,2830.8,2830.3,0.15715008]
[1645837229921,1.02357557,2830.7,2830.3,0.15715008]
[1645837230118,1.02357557,2830.7,2830.3,0.15185946]
[1645837230323,0.1413,2830.6,2830.0,0.00529062]
[1645837230520,0.16118208,2830.5,2829.9,0.205438]
[1645837230920,0.1413,2830.6,2829.9,0.205438]
[1645837231122,0.0506172,2830.2,2829.9,0.205438]
[1645837231323,1.05840395,2830.1,2829.9,0.205438]
[1645837232365,3.5,2830.0,2829.7,0.15185946]
[1645837232565,0.0506172,2830.0,2829.9,0.00542609]
[1645837232772,1.05840395,2830.1,2829.9,0.00542609]
[1645837233377,1.05840395,2830.1,2828.6,7.45]
[1645837233378,10.5,2829.9,2828.5,1.205438]
[1645837233671,10.5,2829.9,2829.3,0.00533662]
[1645837233672,0.01278929,2829.4,2829.3,0.00533662]
[1645837233871,0.16251896,2829.6,2829.3,0.05357852]
[1645837234167,7.7688,2829.7,2829.3,0.05357852]
[1645837234168,0.26065767,2829.4,2829.3,0.05357852]
[1645837234568,0.21004047,2829.4,2829.3,0.05357852]
[1645837234768,1.64228145,2829.4,2829.3,0.05357852]
[1645837234970,5.0,2829.3,2828.7,0.05357852]
[1645837235170,0.21855242,2829.2,2828.7,0.05357852]
[1645837235673,1.28936239,2828.8,2828.7,0.05357852]
[1645837236712,1.12152306,2828.8,2828.7,0.05357852]
[1645837237313,1.17214026,2828.8,2828.7,0.05357852]
[1645837239115,0.0506172,2828.8,2828.7,0.05357852]
[1645837240358,1.14874159,2828.8,2828.7,0.05357852]
[1645837240968,0.0506172,2828.8,2828.7,0.05357852]
[1645837241962,1.4539514,2828.8,2828.7,0.05357852]
[1645837242362,1.4539514,2828.8,2828.6,0.00561769]
[1645837242562,0.00265511,2829.2,2828.6,0.00561769]
[1645837243402,0.00265511,2829.2,2828.8,0.00548778]
[1645837243403,0.00222312,2829.2,2828.8,0.00548778]
[1645837243608,1.2889583,2829.1,2828.8,0.00548778]
[1645837244304,0.0506172,2829.0,2828.8,0.00548778]
[1645837244504,1.2889583,2829.1,2828.8,0.00548769]
[1645837244705,1.45877256,2829.1,2828.8,0.00548769]
[1645837245105,1.2889583,2829.1,2828.8,0.00548769]
[1645837245510,1.41004041,2828.4,2828.3,0.00533662]
[1645837245710,1.41004041,2828.4,2828.2,0.32570074]
[1645837246607,1.41004041,2828.4,2828.2,0.30371892]
[1645837247059,0.17372393,2828.3,2828.2,0.30934387]
[1645837247259,0.0506172,2828.3,2828.2,0.30934387]
[1645837247462,0.24137536,2828.3,2828.2,0.30934387]
[1645837247660,0.24137536,2828.3,2827.7,0.02250317]
[1645837247661,0.22627279,2828.1,2827.7,0.02250317]
[1645837247865,0.16838935,2828.1,2827.1,0.00533662]
[1645837248261,0.29185157,2828.2,2827.1,0.00533662]
[1645837248462,0.15131759,2828.0,2827.1,0.00533662]
[1645837248667,0.22918101,2828.2,2826.9,1.77423662]
[1645837248863,0.1414,2828.3,2827.0,1.76889]
[1645837249067,0.1414,2828.5,2827.1,7.45533662]
[1645837249261,1.30571834,2828.0,2827.2,0.00533662]
[1645837249461,1.30571834,2828.0,2827.4,0.00501011]
[1645837250262,0.0506172,2827.7,2827.4,0.8844]
[1645837250665,0.01015887,2827.7,2827.4,1.4844]
[1645837250910,1.00080052,2828.9,2827.6,1.76853]
[1645837251113,0.00080052,2828.9,2827.6,2.02462548]
[1645837251318,0.00080052,2828.9,2827.8,0.88427]
[1645837251513,0.00080052,2828.9,2827.9,0.00533662]
[1645837251712,0.1414,2829.0,2827.9,0.00533662]
[1645837251914,0.00080068,2828.9,2827.7,0.00533662]
[1645837252112,0.1414,2828.8,2827.7,0.30533662]
[1645837252311,0.1414,2828.8,2827.8,0.00533662]
[1645837252715,1.33163384,2828.4,2827.8,0.00533662]
[1645837252915,1.33163384,2828.4,2827.7,0.3]
[1645837253112,0.14220069,2828.9,2827.7,0.3]
[1645837253313,0.14220069,2828.9,2827.7,0.25533662]
[1645837253513,0.01015887,2828.3,2827.7,0.25533662]
[1645837253713,0.01015887,2828.3,2827.6,2.06853]
[1645837253917,0.1414,2828.9,2827.6,3.06853]
[1645837254313,1.27760614,2828.5,2827.9,0.00578722]
[1645837254764,1.31586991,2828.0,2827.9,0.00578722]
[1645837254960,0.01015887,2828.4,2827.9,0.00578722]
[1645837255162,0.01015887,2828.4,2827.2,0.88444]
[1645837255364,0.35298384,2828.9,2828.1,0.00578687]
[1645837256064,1.40204843,2828.8,2828.1,0.00578687]
[1645837256267,0.1414,2828.7,2827.2,0.88444]
[1645837256471,0.01015887,2828.4,2827.2,0.88444]
[1645837256664,1.28976747,2827.8,2827.7,0.02315113]
[1645837256866,0.3571778,2828.7,2827.7,0.02315113]
[1645837257064,0.35264672,2828.7,2827.7,0.02315113]
[1645837257470,0.35264672,2828.7,2827.3,0.3]
[1645837257865,1.20856968,2828.1,2827.3,0.3]
[1645837258065,1.10640455,2827.5,2827.3,0.3]
[1645837258311,3.5,2828.6,2827.3,0.3]
[1645837258504,0.35264672,2828.7,2827.3,0.3]
[1645837258505,0.1414,2828.5,2827.3,0.3]
[1645837258804,5.34970273,2828.6,2827.1,0.6533]
[1645837259008,5.4414,2828.6,2827.8,0.005555]
[1645837259204,3.72516733,2828.5,2827.8,0.005555]
[1645837259407,0.1414,2828.4,2827.8,0.005555]
[1645837259607,1.44436428,2828.3,2827.8,0.005555]
[1645837259803,0.32643953,2828.2,2827.8,0.005555]
[1645837260004,0.19434849,2828.1,2827.8,0.005555]
[1645837260205,0.19434849,2828.1,2828.0,0.00555474]
[1645837260404,0.30019953,2828.1,2828.0,0.00555474]
[1645837260706,0.60019953,2828.1,2828.0,0.00555474]
[1645837260908,0.75524236,2828.1,2828.0,0.00555474]
[1645837261109,0.75524236,2828.1,2827.0,0.00530884]
[1645837261110,0.76540123,2828.1,2827.0,0.00530884]
[1645837261312,1.14898899,2827.6,2827.0,0.00530884]
[1645837261514,1.14898899,2827.6,2826.9,1.76894]
[1645837261515,1.14898899,2827.6,2827.5,0.02222265]
[1645837262157,1.14758899,2827.6,2827.5,0.02222265]
[1645837262358,1.14758899,2827.6,2827.0,0.00530884]
[1645837262560,0.01015887,2827.3,2826.9,1.76894]
[1645837262858,1.14758899,2827.6,2826.9,1.66894]
[1645837263262,1.14758899,2827.6,2826.9,1.91894]
[1645837264066,0.01015887,2827.2,2826.9,1.91894]
[1645837264264,0.1414,2828.5,2826.9,1.91894]
[1645837264265,0.1414,2828.5,2827.0,0.00530884]
[1645837264476,0.29357638,2828.5,2827.0,0.00530884]
[1645837264663,0.1414,2828.4,2827.0,0.00530884]
[1645837265262,1.42811993,2827.5,2827.0,0.00530884]
[1645837265462,1.42811993,2827.5,2826.9,1.91894]
[1645837265662,0.01015887,2827.2,2826.9,1.91894]
[1645837265913,0.18754326,2828.1,2826.9,1.61894]
[1645837265914,1.11029755,2827.0,2826.9,1.61894]
[1645837266117,1.11029755,2827.0,2826.3,6.3658525]
[1645837266315,1.11029755,2827.0,2826.6,0.02240926]
[1645837267214,0.01015887,2826.8,2826.3,5.37116369]
[1645837267413,0.01015887,2826.8,2826.7,0.0056679]
[1645837267615,1.0,2827.7,2826.9,0.00788156]
[1645837267813,1.0,2827.7,2826.9,0.89243156]
[1645837268214,1.39152743,2827.2,2826.9,0.89243156]
[1645837268413,0.2079455,2827.8,2826.9,0.00788156]
[1645837268614,0.22071504,2828.0,2827.2,0.00566702]
[1645837268813,0.01015887,2827.3,2827.2,0.00566702]
[1645837269013,5.16149798,2828.0,2827.2,0.00566702]
[1645837269219,5.0,2827.7,2827.2,0.00566702]
[1645837269415,0.1414,2827.6,2827.2,0.00566702]
[1645837269662,0.30191144,2827.6,2827.2,0.00566702]
[1645837269863,0.30191144,2827.6,2827.5,0.0056665]
[1645837270264,0.1414,2827.6,2827.5,0.0056665]
[1645837270665,0.32407603,2827.6,2826.9,0.00788156]
[1645837270869,0.15903946,2827.5,2826.9,0.00788156]
[1645837271272,0.1414,2827.4,2826.9,0.00788156]
[1645837271571,1.11659341,2827.0,2826.9,0.00788156]
[1645837273418,1.12675228,2827.0,2826.9,0.00788156]
[1645837274017,0.01015887,2827.0,2826.9,0.00788156]
[1645837274423,0.01015887,2827.0,2826.9,0.39425341]
[1645837274619,0.88461,2828.8,2827.1,0.3533]
[1645837274821,0.14206454,2828.9,2827.6,0.01283395]
[1645837274822,0.002526,2828.9,2827.6,0.01283395]
[1645837275021,0.002526,2828.9,2827.7,0.81048777]
[1645837275221,0.002526,2828.9,2827.9,0.56500052]
[1645837275428,0.002526,2828.9,2828.1,0.3533]
[1645837275620,0.002526,2828.9,2828.3,0.3533]
[1645837275820,0.002526,2828.9,2828.3,0.6533]
[1645837276020,1.0781262,2829.5,2828.4,0.7783]
[1645837276219,0.18460266,2829.7,2828.4,1.08361119]
[1645837276420,1.0781061,2829.6,2828.4,1.08361119]
[1645837276623,0.18214189,2830.0,2828.8,0.3533]
[1645837276624,0.1423,2830.0,2828.8,0.3533]
[1645837276824,0.001,2830.0,2829.6,0.83750643]
[1645837277279,0.001,2830.0,2829.6,1.13750643]
[1645837277672,0.001,2830.0,2829.6,0.83750643]
[1645837277875,0.001,2830.0,2829.6,0.48420643]
[1645837279477,0.00250347,2829.9,2829.6,0.48420643]
[1645837279682,0.00250347,2829.9,2829.6,1.36789643]
[1645837280478,0.00250347,2829.9,2829.6,2.02119643]
[1645837280679,0.001,2830.0,2829.6,2.02119643]
[1645837280680,0.001,2830.0,2829.8,0.3533]
[1645837280954,0.001,2830.0,2829.8,0.6533]
[1645837281755,13.7264,2831.6,2829.8,0.6533]
[1645837281756,1.1413,2831.2,2830.1,1.23666]
[1645837281956,6.32236189,2832.5,2830.3,0.3533]
[1645837281957,0.35258246,2831.8,2830.3,0.3533]
[1645837282156,0.35258246,2831.8,2830.6,1.76661]
[1645837282157,1.07807829,2831.7,2830.6,1.76661]
[1645837282357,1.07807829,2831.7,2830.6,2.06661]
[1645837282554,1.07807829,2831.7,2830.7,0.3]
[1645837282757,2.29661335,2831.6,2830.7,0.3]
[1645837282956,1.21853506,2831.6,2830.7,0.3]
[1645837283157,1.22800383,2831.1,2830.5,1.76678]
[1645837283358,0.20250401,2831.6,2829.8,7.8107]
[1645837283359,3.5,2831.0,2829.8,7.8107]
[1645837283557,1.36217786,2831.9,2829.7,6.52029001]
[1645837283558,0.20471149,2831.4,2829.9,1.0]
[1645837283761,0.21274229,2831.5,2829.9,0.3]
[1645837283955,2.07636521,2831.4,2829.9,0.3]
[1645837284157,0.9209334,2831.4,2829.9,1.6533]
[1645837284356,1.42397884,2831.2,2829.9,1.6533]
[1645837284560,0.9209334,2831.4,2829.9,1.6533]
[1645837284763,0.1413,2831.6,2829.9,1.6533]
[1645837285167,0.1413,2832.0,2829.9,1.28364749]
[1645837285367,0.1413,2832.0,2830.5,1.76675]
[1645837285368,1.07611748,2831.9,2830.5,1.76675]
[1645837285667,1.07611748,2831.9,2830.6,0.3533]
[1645837285668,0.0026575,2830.9,2830.6,0.3533]
[1645837285870,0.0026575,2830.9,2830.8,0.3533]
[1645837286069,5.75e-05,2830.9,2830.8,16.5783]
[1645837286269,0.0106284,2831.3,2831.0,11.1533]
[1645837286469,0.1411,2833.1,2831.2,11.1533]
[1645837286669,8.53518118,2833.2,2831.2,11.1533]
[1645837286670,1.07349618,2833.0,2831.4,11.1533]
[1645837286873,0.1411,2833.6,2832.1,0.3533]
[1645837287075,0.1411,2833.6,2832.3,1.14443144]
[1645837287271,0.8561432,2834.3,2832.4,0.65324064]
[1645837287475,1.07288046,2834.2,2832.4,0.95324064]
[1645837287669,1.21398046,2834.3,2832.5,1.06878744]
[1645837287870,1.21398046,2834.3,2832.6,0.725]
[1645837287871,2.5153348,2834.2,2832.6,0.725]
[1645837288071,1.44245434,2834.2,2832.6,0.725]
[1645837288321,0.1411,2834.2,2832.7,1.7650052]
[1645837288511,0.1411,2834.2,2832.7,2.1900052]
[1645837288715,0.1411,2834.2,2832.7,2.4900052]
[1645837288916,1.06861992,2834.1,2832.5,1.0]
[1645837289112,1.06861992,2834.1,2832.0,0.00224001]
[1645837289113,0.1411,2834.0,2832.0,1.05474273]
[1645837289315,1.06861992,2833.9,2832.1,15.82764]
[1645837289515,1.34011379,2833.0,2832.1,8.15464]
[1645837289819,0.47060571,2834.0,2832.1,2.64814]
[1645837290021,1.0681993,2833.9,2832.1,2.64814]
[1645837290215,0.1411,2833.8,2832.1,2.64814]
[1645837290415,0.00262428,2832.7,2832.2,0.88294]
[1645837290818,0.00262428,2832.7,2832.2,1.7656665]
[1645837291022,0.01049557,2833.1,2832.3,3.5]
[1645837291222,1.0611,2834.2,2832.3,4.925]
[1645837291419,1.0611,2834.2,2832.8,0.88261]
[1645837291620,0.1411,2834.2,2832.8,0.88261]
[1645837291819,0.1411,2834.2,2832.8,1.18261]
[1645837291820,1.26296532,2834.1,2832.8,1.18261]
[1645837292061,0.1411,2834.0,2832.8,1.18261]
[1645837292461,0.13819996,2834.3,2832.8,1.18261]
[1645837292462,0.1411,2834.2,2832.8,1.18261]
[1645837292667,0.1411,2834.2,2833.1,0.88265]
[1645837293065,0.1411,2834.2,2833.1,1.48265]
[1645837293468,1.39792195,2834.3,2833.1,1.48265]
[1645837294468,0.13819996,2834.3,2833.1,1.48265]
[1645837294672,0.1411,2834.5,2833.1,7.18515]
[1645837294881,7.45,2834.6,2833.4,0.20726962]
[1645837295070,7.45,2834.6,2833.6,0.22283851]
[1645837295273,7.45,2835.3,2833.8,0.23389]
[1645837295468,0.01046933,2834.3,2833.8,0.23389]
[1645837295677,0.01046933,2834.3,2833.7,0.425]
[1645837295910,0.01046933,2834.3,2833.7,0.725]
[1645837296316,0.003156,2834.6,2833.9,0.1866397]
[1645837296512,0.003156,2834.6,2834.0,0.64635357]
[1645837296815,0.003156,2834.6,2834.1,0.23991395]
[1645837297013,0.003156,2834.6,2834.2,0.425]
[1645837297214,1.3311101,2835.2,2834.2,0.425]
[1645837297515,1.20681441,2834.7,2834.2,1.6071]
[1645837297714,0.99162315,2834.1,2834.0,2.76421]
[1645837298414,0.99162315,2834.1,2834.0,3.11751]
[1645837298615,0.99162315,2834.1,2834.0,2.11751]
[1645837298816,0.99162315,2834.1,2834.0,3.11751]
[1645837299015,0.1411,2835.5,2834.0,2.11751]
[1645837299220,0.1411,2835.5,2834.5,0.88218]
[1645837299666,0.1411,2835.5,2834.6,1.76422]
[1645837299863,0.20738052,2835.6,2834.6,1.76422]
[1645837300065,0.20738052,2835.6,2834.6,2.06422]
[1645837300066,0.00261254,2835.1,2834.6,2.06422]
[1645837300864,0.00216233,2835.7,2834.6,2.06422]
[1645837301269,0.00261254,2835.0,2834.6,2.06422]
[1645837302167,0.00216233,2835.7,2834.6,2.06422]
[1645837302366,0.00261254,2834.9,2834.6,2.06422]
[1645837303178,0.00261254,2834.9,2834.8,0.23458259]
[1645837303439,0.01044859,2835.4,2834.9,0.88198]
[1645837303644,0.01044859,2835.3,2834.9,1.11046529]
[1645837303940,0.01044859,2835.3,2834.9,1.18198]
[1645837304342,0.01044859,2835.3,2835.2,5.0]
[1645837304553,0.01296566,2836.9,2835.2,5.0]
[1645837304554,0.00216233,2836.2,2835.2,0.425]
[1645837304745,0.00280793,2835.7,2835.2,1.95779325]
[1645837304943,0.00280793,2835.7,2835.4,5.0]
[1645837305241,0.00280793,2835.7,2835.5,11.8783]
[1645837305441,0.00280793,2835.7,2835.5,0.725]
[1645837305642,0.00280793,2835.7,2835.5,1.60681]
[1645837305847,0.00280793,2835.7,2835.5,1.18181]
[1645837306045,0.00280296,2836.2,2835.5,1.18181]
[1645837306248,0.00280296,2836.2,2835.5,0.3]
[1645837306446,0.00280296,2836.2,2835.6,0.3533]
[1645837306845,0.00280296,2836.2,2835.7,1.76348]
[1645837307060,0.00280296,2836.2,2835.7,2.06348]
[1645837307264,0.00232765,2836.0,2835.7,2.06348]
[1645837308266,1.42025867,2835.8,2835.7,1.76348]
[1645837308574,1.42025867,2835.8,2835.1,8.90962273]
[1645837308766,1.42025867,2835.8,2835.1,0.05698274]
[1645837309364,1.42025867,2835.8,2835.1,0.93900274]
[1645837309566,0.14306233,2836.5,2835.1,0.93900274]
[1645837309965,7.59306233,2836.5,2835.1,0.93900274]
[1645837310365,7.59306233,2836.5,2835.2,0.3]
[1645837310571,0.00216233,2836.5,2835.2,0.3]
[1645837310815,0.00216233,2836.6,2835.6,0.88176]
[1645837311019,0.00216233,2836.8,2835.6,1.18176]
[1645837311225,0.00216233,2836.8,2835.6,1.48176]
[1645837311617,1.01613431,2836.6,2835.6,1.48176]
[1645837311819,0.00216233,2836.6,2835.6,1.48176]
[1645837312018,0.06,2837.4,2835.6,12.28176]
[1645837312019,0.00216233,2836.8,2835.6,12.28176]
[1645837312218,0.00216233,2836.8,2835.6,12.50175011]
[1645837312219,0.00258508,2836.3,2835.6,12.50175011]
[1645837312417,0.00258508,2836.3,2835.6,2.83506]
[1645837312617,0.00258508,2836.3,2835.8,0.3533]
[1645837312818,0.00258508,2836.3,2835.8,0.6533]
[1645837313219,0.00258508,2836.1,2835.8,0.6533]
[1645837313419,0.00258508,2836.1,2836.0,0.88169]
[1645837313724,0.00258508,2836.1,2836.0,1.48169]
[1645837314119,0.00258508,2836.1,2836.0,12.63499]
[1645837314418,0.00258508,2836.2,2836.0,13.63499]
[1645837314868,0.00258508,2836.2,2836.1,0.3]
[1645837315071,0.00258508,2836.2,2836.1,0.6533]
[1645837315568,0.00258508,2836.3,2836.1,0.6533]
[1645837315773,0.00258508,2836.3,2836.1,0.8636731]
[1645837315977,0.02508617,2837.4,2836.1,0.8636731]
[1645837316174,0.02508617,2837.4,2836.6,11.1533]
[1645837316175,0.0272818,2837.4,2836.6,11.1533]
[1645837316385,0.02508617,2837.4,2836.8,11.1533]
[1645837316578,0.02508617,2837.4,2836.8,11.40205454]
[1645837316789,0.02508617,2837.4,2837.0,11.1533]
[1645837316790,8.617e-05,2837.4,2837.0,11.1533]
[1645837316976,1.23416828,2837.7,2837.0,0.7783]
[1645837317178,1.23416828,2837.7,2837.0,1.30224001]
[1645837317377,1.23416828,2837.7,2837.0,0.30224001]
[1645837317577,1.33755187,2837.2,2837.0,0.30224001]
[1645837317777,0.00219563,2838.0,2836.7,0.47474715]
[1645837317983,0.1409,2837.9,2836.7,1.0]
[1645837318417,7.45,2838.1,2836.6,0.30224001]
[1645837318418,0.1538328,2838.0,2836.6,0.00224001]
[1645837318616,0.13965591,2837.8,2836.6,0.00224001]
[1645837318816,1.26885013,2837.7,2836.6,0.00224001]
[1645837319025,1.42542599,2837.7,2836.6,0.00224001]
[1645837319216,0.48697571,2837.7,2836.6,0.00224001]
[1645837319417,0.1409,2837.7,2836.6,0.00224001]
[1645837319616,0.1409,2837.9,2836.6,0.00224001]
[1645837320427,0.00255277,2837.4,2836.6,0.00224001]
[1645837320622,0.00255277,2837.4,2836.7,1.2348]
[1645837320823,0.00255277,2837.4,2836.7,1.5348]
[1645837320824,1.44068713,2837.2,2836.7,1.5348]
[1645837321021,0.00255277,2837.4,2836.7,0.6533]
[1645837321222,0.01020955,2837.8,2836.7,0.6533]
[1645837321528,0.00255277,2837.1,2836.8,0.23847216]
[1645837321724,0.00255277,2837.1,2837.0,11.1533]
[1645837321922,0.00255277,2837.1,2837.0,0.3533]
[1645837322174,0.00255277,2837.1,2837.0,11.45554001]
[1645837322377,0.00255277,2837.1,2837.0,0.30224001]
[1645837322576,0.00255277,2837.1,2837.0,1.30224001]
[1645837322774,0.00255277,2837.2,2837.0,0.30224001]
[1645837322974,0.00255277,2837.2,2837.0,0.35474273]
[1645837323174,0.00255277,2837.2,2837.0,0.35698274]
[1645837323376,1.08054795,2837.1,2837.0,0.05698274]
[1645837323578,0.00255277,2837.2,2837.0,0.05698274]
[1645837323977,0.00255277,2837.2,2837.0,0.10948546]
[1645837324181,0.1409,2838.1,2837.0,0.11172547]
[1645837324379,0.9966157,2838.0,2837.0,0.11172547]
[1645837324578,0.1409,2837.9,2837.0,0.11172547]
[1645837324978,0.00218766,2838.0,2837.0,0.16422819]
[1645837325180,0.00200979,2837.7,2837.0,0.16964098]
[1645837325380,0.00200979,2837.7,2837.2,0.3533]
[1645837325579,0.00200979,2837.7,2837.1,0.3]
[1645837326217,0.00200979,2837.7,2837.0,0.22438371]
[1645837326424,0.00200972,2837.7,2837.6,0.3533]
[1645837326626,0.00200972,2837.7,2837.6,11.79826689]
[1645837327018,0.00200972,2837.7,2837.6,12.79826689]
[1645837327219,2.383505,2838.2,2837.6,12.79826689]
[1645837327220,2.383505,2838.2,2837.6,12.5783]
[1645837327420,2.383505,2838.2,2837.8,0.3533]
[1645837327623,2.383505,2838.2,2837.6,1.425]
[1645837327827,2.383505,2838.2,2837.8,0.3]
[1645837328124,2.383505,2838.2,2837.5,1.23585273]
[1645837328524,2.383505,2838.2,2837.8,0.00224001]
[1645837328726,1.07871388,2837.9,2837.8,0.00224001]
[1645837329592,2.383505,2838.2,2837.8,0.00448002]
[1645837329996,0.00251584,2838.0,2837.8,0.00448002]
[1645837330193,0.00251584,2838.0,2837.8,0.05698274]
[1645837330595,1.39067,2837.9,2837.8,0.05922275]
[1645837331206,1.39067,2837.9,2837.8,0.11172547]
[1645837331599,1.39067,2837.9,2837.8,0.11396548]
[1645837332203,2.3625665,2837.9,2837.8,0.1664682]
[1645837332406,1.39067,2837.9,2837.8,0.1664682]
[1645837332604,1.39067,2837.9,2837.8,0.16870821]
[1645837333206,2.36256781,2837.9,2837.8,0.22121093]
[1645837333625,0.03437514,2837.7,2837.5,0.10724545]
[1645837334635,0.03437514,2837.7,2837.5,0.10948546]
[1645837335632,0.03437514,2837.7,2837.5,0.16422819]
[1645837335833,2.37005944,2838.2,2837.5,0.16422819]
[1645837336032,0.00251017,2837.8,2837.5,0.16422819]
[1645837336634,0.00251017,2837.8,2837.5,0.21897092]
[1645837336934,1.03075772,2838.0,2837.5,0.21673091]
[1645837337183,0.00251021,2837.8,2837.5,0.21673091]
[1645837337778,0.00251021,2837.8,2837.2,0.3533]
[1645837337982,0.00251021,2837.8,2837.3,0.88134]
[1645837338184,0.00251021,2837.8,2837.3,12.28134]
[1645837338385,2.37005944,2838.2,2837.5,11.1533]
[1645837338585,2.37005944,2838.2,2837.5,14.6533]
[1645837338586,2.36788014,2838.2,2837.5,14.6533]
[1645837338783,2.36788014,2838.2,2837.5,1.70580272]
[1645837338983,2.36788014,2838.2,2837.6,0.88116]
[1645837339181,2.36788014,2838.2,2837.6,1.48346]
[1645837339383,2.36788014,2838.2,2837.7,0.3]
[1645837341032,2.36788014,2838.2,2837.6,0.40724545]
[1645837341832,2.36564013,2838.2,2837.6,0.40724545]
[1645837342238,2.36564013,2838.2,2837.7,0.88121]
[1645837342640,2.36564013,2838.2,2837.8,0.3]
[1645837342838,2.36564013,2838.2,2837.8,0.35250272]
[1645837343840,0.96058301,2838.1,2837.8,0.35250272]
[1645837344043,2.36564013,2838.2,2837.8,0.40500544]
[1645837344343,0.00252469,2838.1,2837.9,5.2622]
[1645837344580,0.00252469,2838.1,2838.0,0.3]
[1645837345380,2.36564013,2838.2,2838.0,0.3]
[1645837345587,2.36816482,2838.2,2837.9,1.0]
[1645837345786,2.36816482,2838.2,2837.8,0.10500544]
[1645837345992,0.96119949,2838.1,2837.8,0.10500544]
[1645837346187,2.36816482,2838.2,2837.8,0.10500544]
[1645837346386,1.97976575,2838.1,2837.8,0.10500544]
[1645837346589,1.01856179,2838.1,2837.8,0.10500544]
[1645837346788,1.02083613,2838.1,2837.8,0.10500544]
[1645837346993,0.00227434,2838.1,2837.8,0.10500544]
[1645837347192,0.96450134,2838.1,2837.8,0.10500544]
[1645837347593,0.962227,2838.0,2837.8,0.10500544]
[1645837347790,0.00227434,2838.1,2837.8,0.10500544]
[1645837347988,0.96454734,2838.1,2837.8,0.10500544]
[1645837348188,1.19329469,2838.0,2837.8,0.10500544]
[1645837348833,2.36564013,2838.2,2837.8,0.10500544]
[1645837349129,0.00227434,2838.0,2837.8,0.10500544]
[1645837350135,0.00227434,2838.0,2837.8,0.09348632]
[1645837350333,0.00252469,2838.0,2837.8,0.09348632]
[1645837350534,0.01009724,2838.5,2837.9,11.78444971]
[1645837350733,0.01009724,2838.5,2838.2,11.00321627]
[1645837350932,0.01009724,2838.5,2838.2,10.99929923]
[1645837351136,0.01009724,2838.5,2838.2,1.96126923]
[1645837351333,0.00217935,2839.2,2838.2,13.76126923]
[1645837351533,0.96233159,2839.3,2838.4,10.8]
[1645837351734,0.96233159,2839.3,2838.4,11.1]
[1645837351931,0.96233159,2839.3,2838.4,12.1]
[1645837352188,0.96233159,2839.3,2838.5,0.3533]
[1645837352391,0.00217935,2839.4,2838.6,15.29432222]
[1645837352392,0.96451094,2839.4,2838.6,15.29432222]
[1645837352591,0.96233159,2839.3,2838.6,12.30131205]
[1645837352793,0.00217935,2839.7,2838.6,16.79553073]
[1645837352993,0.00217935,2839.9,2838.6,16.79553073]
[1645837353392,0.00217935,2839.9,2838.9,11.1533]
[1645837353590,0.00217935,2839.9,2839.4,11.1533]
[1645837353591,0.96763653,2839.9,2839.4,11.1533]
[1645837353792,0.96763653,2839.8,2839.4,16.7770781]
[1645837354005,0.88857459,2840.6,2839.4,16.7770781]
[1645837354006,0.6673285,2840.4,2839.6,14.6533]
[1645837354195,0.007,2840.6,2839.9,0.25780907]
[1645837354392,0.04149491,2840.5,2840.1,0.26792864]
[1645837354591,0.04149491,2840.5,2840.3,10.8]
[1645837354789,0.04092649,2840.4,2840.3,11.1]
[1645837354990,0.04092649,2840.4,2840.3,1.3]
[1645837355192,0.04092649,2840.4,2840.2,1.76055]
[1645837355397,0.04092649,2840.4,2839.4,3.295]
[1645837355591,0.04035806,2840.3,2839.4,3.295]
[1645837355818,0.04035806,2840.3,2839.4,4.17569]
[1645837356228,0.04035806,2840.3,2839.4,0.88069]
[1645837356523,1.17942171,2840.2,2839.4,0.88069]
[1645837356723,1.17942171,2840.2,2839.4,1.18069]
[1645837356926,0.04035806,2840.3,2839.1,0.88079]
[1645837356927,1.14850521,2839.7,2839.1,0.88079]
[1645837357130,1.42340483,2839.0,2838.5,3.5]
[1645837357324,1.3529,2840.2,2838.5,3.5]